Cogmind - Beta 16 --- EXPLORER MODE // 2025.11.27 @ 14:29:20 Player: K.K.Y. Result: Destroyed by G-34 Mercenary with Small Laser Performance ------------- Evolutions (0) 0 Regions Visited (3) 600 Robots Destroyed (9) 45 Value Destroyed (300) 300 Prototype IDs (0) 0 Alien Tech Used (0) 0 Bonus (180) 180 TOTAL SCORE: 1125 Bonus ------- Follower Combat Kills 180 Cogmind --------- Core Integrity 0/250 Matter 300/300 Energy 100/100 System Corruption 0% Temperature Cool (6) Movement Core (150) Ox2 Location -10/Subcaves Parts ------- > --- POWER (1) -------- (None) > --- PROPULSION (2) --- (None) > --- UTILITY (3) ------ Small Storage Unit Signal Interpreter > --- WEAPON (2) ------- Medium Laser > --- INVENTORY (8) ---- Ion Engine Hover Unit Improved Heat Sink Medium Storage Unit Medium Laser Particle Gun Peak State ------------ > --- POWER ------------ Light Nuclear Core > --- PROPULSION ------- Hover Unit Hover Unit > --- UTILITY ---------- Small Storage Unit Sensor Array Signal Interpreter > --- WEAPON ----------- Medium Laser Particle Gun > --- INVENTORY -------- Ion Engine Hover Unit Improved Heat Sink Medium Storage Unit Medium Laser Medium Laser [Rating: 11] Favorites ----------- Power Light Nuclear Core Engine Ion Engine Power Core Light Nuclear Core Propulsion Hover Unit Treads Light Treads Hover Unit Hover Unit Utility Small Storage Unit Device Sensor Array Storage Small Storage Unit Processor Signal Interpreter Weapon Medium Laser Energy Gun Medium Laser Special Weapon Flamer Build | -11 -10 -10 -10 ------- Run | Yrd Mat Min Sub Slots Evolved 1 | . 1 . . Power . | . . . . Propulsion . | . . . . Utility 1 | . 1 . . Weapon . | . . . . Parts Attached 19 | 7 6 3 3 Power 3 | 1 1 1 . Engine 2 | 1 1 . . Core 1 | . . 1 . Reactor . | . . . . Propulsion 5 | 2 2 1 . Treads 2 | 2 . . . Leg . | . . . . Wheel . | . . . . Hover 3 | . 2 1 . Flight . | . . . . Utility 4 | 2 2 . . Device 1 | 1 . . . Storage 2 | 1 1 . . Processor 1 | . 1 . . Hackware . | . . . . Protection . | . . . . Artifact . | . . . . Weapon 7 | 2 1 1 3 Energy Gun 4 | 2 1 . 1 Energy Cannon . | . . . . Ballistic Gun . | . . . . Ballistic Cannon . | . . . . Launcher . | . . . . Special Weapon 3 | . . 1 2 Impact Weapon . | . . . . Slashing Weapon . | . . . . Piercing Weapon . | . . . . Special Melee Weapon . | . . . . Unidentified Prototypes . | . . . . Parts Lost 9 | . . 2 7 Power 2 | . . 1 1 Propulsion 2 | . . . 2 Utility 1 | . . . 1 Weapon 4 | . . 1 3 Highest Loss Streak 5 | . . 2 5 To Critical Strikes . | . . . . Average Backups 6 | 1 4 7 7 Power . | . . 1 1 Propulsion . | . 1 . 1 Utility 1 | . . 2 2 Weapon 2 | . 1 3 3 Tool/Special . | . . . . Unused Backups 2 | . . . 2 Power . | . . . . Propulsion . | . . . . Utility 1 | . . . 1 Weapon 1 | . . . 1 Tool/Special . | . . . . Average Slot Usage (%) 78 | . 87 78 71 Engine 4 | . 11 2 . Core 6 | . . 9 10 Treads 2 | . 7 . . Hover 18 | . 16 25 15 Device 8 | . 12 12 4 Storage 12 | . 12 12 12 Processor 10 | . 6 12 12 Energy Gun 8 | . 19 2 3 Special Weapon 5 | . . 1 12 Peak Build Rating 11 | 7 9 9 11 Average Rating 8 | 3 7 8 9 On Entrance 6 | . 7 9 9 Avg Prop Armor Cover (%) . | . . . . Naked Turns . | . . . . Heaviest Build 20 | 20 20 12 16 Greatest Support 40 | 40 40 12 12 Greatest Overweight (x) 2 | 1 1 . 2 Average Overweight (x) . | . . . . Largest Inventory Capacity 10 | 10 10 8 8 Average Capacity 8 | 7 8 8 8 Most Carried 8 | 5 8 8 8 Average Carried 6 | 1 4 7 7 Final Capacity 10 | 10 8 8 8 Final Carried 8 | . 8 8 6 Class Distribution -------------------- 100% | Hacker-Mutant Dominant Class ---------------- Hacker-Mutant | -10/Materials Hacker-Mutant | -10/Mines Hacker-Mutant | -10/Subcaves Resources | -11 -10 -10 -10 ----------- Run | Yrd Mat Min Sub Matter Collected 451 | 199 172 . 80 Remotely . | . . . . Salvage Created 414 | . 186 92 136 Parts 14 | . 8 2 4 Haulers Intercepted 1 | . 1 . . Recyclers Shooed . | . . . . Parts Field Recycled . | . . . . Retrieved Matter . | . . . . Parts Self-Destructed . | . . . . Prevented . | . . . . Parts Restored . | . . . . Kills | -11 -10 -10 -10 ------- Run | Yrd Mat Min Sub Combat Hostiles Destroyed 7 | . 2 2 3 Guns 6 | . 2 1 3 Classes Destroyed 4 | . 3 . 1 Hauler 1 | . 1 . . Watcher 1 | . 1 . . Grunt 4 | . 2 2 . Subdweller 3 | . . . 3 Best Kill Streak 2 | . 2 2 2 Combat Bots Only 2 | . 2 2 2 Max Kills in Single Turn 1 | . 1 1 1 Gunslinging . | . . . . Exploded . | . . . . Melee . | . . . . Uniques/NPCs Destroyed . | . . . . Combat | -11 -10 -10 -10 -------- Run | Yrd Mat Min Sub Hostile Shots Fired 81 | . 9 15 57 Missed 25 | . 4 5 16 Hits 56 | . 5 10 41 Projectile 56 | . 5 10 41 Critical Strikes 4 | . 1 . 3 Damage Taken 750 | . 55 88 607 Core 251 | . 10 11 230 Absorbed by Shields . | . . . . Ignored by Resistances 442 | . 26 55 361 Core Remaining (%) 100 | 100 . . . Volleys Fired 42 | . 12 11 19 Largest 2 | . 2 1 2 Hottest 130 | . 100 50 130 Shots Fired 59 | . 19 11 29 Gun 52 | . 19 11 22 Cannon . | . . . . Launcher . | . . . . Special 7 | . . . 7 Kinetic . | . . . . Thermal 59 | . 19 11 29 Explosive . | . . . . Electromagnetic . | . . . . Robot Hit Streak 55 | . 15 26 55 Robot Miss Streak 1 | . 1 . . Penetration Max . | . . . . Secondary Targets 2 | . 1 . 1 Max Gunslinging Chain 1 | . 1 . 1 Shots Hit Robots 57 | . 17 11 29 Core Hits 21 | . 9 4 8 Critical Kills . | . . . . Critical Parts Destroyed . | . . . . Critical Strikes 7 | . 1 2 4 Burn 7 | . 1 2 4 Melee Attacks . | . . . . Impact . | . . . . Slashing . | . . . . Piercing . | . . . . Sneak Attacks . | . . . . Combat Hostiles . | . . . . Follow-up Attacks . | . . . . Damage Inflicted 739 | . 234 137 368 Guns 639 | . 205 137 297 Cannons . | . . . . Explosions . | . . . . Melee . | . . . . Ramming 29 | . 29 . . Kinetic . | . . . . Thermal 710 | . 205 137 368 Explosive . | . . . . Electromagnetic . | . . . . Impact . | . . . . Slashing . | . . . . Piercing . | . . . . Highest Corruption . | . . . . Average Corruption . | . . . . Corruption Purged . | . . . . Corruption Blocked . | . . . . Overload Shots . | . . . . Overflow Damage . | . . . . Projectiles . | . . . . Explosions . | . . . . Melee . | . . . . Knockbacks . | . . . . Impact . | . . . . Kinetic . | . . . . Secondary . | . . . . Self-Inflicted Damage 14 | . 14 . . Shots . | . . . . Rammed 6 | . 6 . . Targets Rammed 6 | . 6 . . Kicked . | . . . . Crushed . | . . . . Highest Temperature 234 | . 234 203 201 Average Temperature 91 | . 78 108 93 Received Heat Transfer 571 | . 54 81 436 Siege Activations . | . . . . Martial Activations . | . . . . Shielding Activations . | . . . . Robots Disrupted 1 | . . . 1 Combat Hostiles 1 | . . . 1 Robots Corrupted . | . . . . Combat Hostiles . | . . . . Parts Fried . | . . . . Impact Corruptions . | . . . . Robots Melted 1 | . . 1 . Combat Hostiles 1 | . . 1 . Parts Melted 7 | . 1 2 4 Heat Transferred 2997 | . 655 555 1787 Parts Sabotaged . | . . . . Parts Stolen . | . . . . Parts Stripped . | . . . . Power Chain Reactions . | . . . . Alert | -11 -10 -10 -10 ------- Run | Yrd Mat Min Sub Maximum Alert Level . | . . . . Low Security (%) 100 | 100 100 100 . Level 1 . | . . . . Level 2 . | . . . . Level 3 . | . . . . Level 4 . | . . . . Level 5 . | . . . . High Security . | . . . . Max Security . | . . . . Peak Influence 50 | . 50 30 . Initial 1 | . . 1 . Average 2 | . 3 1 . Influence Increases 114 | . 64 50 . Destroy 0b10 Robot/C 80 | . 40 40 . Destroy 0b10 Robot/NC 10 | . 10 . . Destroy Leader 24 | . 14 10 . Influence Decreases 114 | . 59 55 . Entered New Map 4 | . . 4 . Time Decay 90 | . 59 31 . Lost Part 20 | . . 20 . Squads Dispatched . | . . . . Investigation . | . . . . Extermination . | . . . . Reinforcement . | . . . . Assault . | . . . . Garrison . | . . . . Intercept . | . . . . Searches Triggered . | . . . . Construction Impeded . | . . . . Haulers Reinforced . | . . . . Active Scanning Responses . | . . . . Cargo Convoy Interrupts . | . . . . Stealth | -11 -10 -10 -10 --------- Run | Yrd Mat Min Sub Distress Signals . | . . . . Communications Jammed . | . . . . Distress Signals . | . . . . Times Spotted 19 | . 5 2 12 Peak Tracking Total 3 | . 2 2 3 Tactical Retreats . | . . . . Traps | -11 -10 -10 -10 ------- Run | Yrd Mat Min Sub Traps Triggered 2 | . 2 . . Indirectly . | . . . . Trap Hack Attempts . | . . . . Triggered . | . . . . Disarmed . | . . . . Reprogrammed . | . . . . Reused . | . . . . Traps Extracted . | . . . . Installed . | . . . . Triggered . | . . . . Machines | -11 -10 -10 -10 ---------- Run | Yrd Mat Min Sub Machines Disabled . | . . . . Max in Single Turn . | . . . . Machines Repaired . | . . . . Machines Dismantled . | . . . . Machines Sabotaged . | . . . . Overloaded Fab Kills . | . . . . Hacking | -11 -10 -10 -10 --------- Run | Yrd Mat Min Sub Machines Accessed . | . . . . Terminals . | . . . . Fabricators . | . . . . Repair Stations . | . . . . Recycling Units . | . . . . Scanalyzers . | . . . . Garrison Access . | . . . . Total Hacks . | . . . . Successful . | . . . . Failed . | . . . . Catastrophic . | . . . . Database Lockouts . | . . . . Manual . | . . . . Terminals . | . . . . Fabricators . | . . . . Repair Stations . | . . . . Recycling Units . | . . . . Scanalyzers . | . . . . Garrison Access . | . . . . Terminal Hacks . | . . . . Fabricator Hacks . | . . . . Repair Station Hacks . | . . . . Recycling Unit Hacks . | . . . . Scanalyzer . | . . . . Garrison Access Hacks . | . . . . Unauthorized Hacks . | . . . . Terminals . | . . . . Fabricators . | . . . . Repair Stations . | . . . . Recycling Units . | . . . . Scanalyzers . | . . . . Garrison Access . | . . . . Data Cores Recovered . | . . . . Used . | . . . . Hacking Detections . | . . . . Full Trace Events . | . . . . Feedback Events . | . . . . Feedback Blocked . | . . . . Robot Schematics Acquired . | . . . . Robots Built . | . . . . Authchips . | . . . . Time . | . . . . Total Robot Build Rating . | . . . . Part Schematics Acquired . | . . . . Parts Built . | . . . . Authchips . | . . . . Time . | . . . . Total Part Build Rating . | . . . . Part Studies Acquired . | . . . . Parts Repaired . | . . . . Time . | . . . . Parts Recycled . | . . . . Recycled Matter . | . . . . Retrieved Matter . | . . . . Retrieved Components . | . . . . Parts Scanalyzed . | . . . . Part Schematics Acquired . | . . . . Parts Damaged . | . . . . Bothacking | -11 -10 -10 -10 ------------ Run | Yrd Mat Min Sub Used RIF Installer . | . . . . Robots Hacked . | . . . . Non-combat . | . . . . Combat . | . . . . Robot Hacks Applied . | . . . . Relay Couplers Released . | . . . . Fabnet Peak Effective % . | . . . . Robots Rewired 1 | . . . 1 Allies Hacked . | . . . . Hacks Repelled . | . . . . Allies | -11 -10 -10 -10 -------- Run | Yrd Mat Min Sub Total Allies 4 | . . 3 1 Largest Group 3 | . . 3 3 Highest-Rated Group 40 | . . 40 40 Highest-Rated Ally 19 | . . 16 19 Total Orders . | . . . . Ally Attacks 27 | . . . 27 Total Damage 354 | . . . 354 Kills 6 | . . . 6 Allies Corrupted . | . . . . Allies Melted 1 | . . . 1 Intel | -11 -10 -10 -10 ------- Run | Yrd Mat Min Sub Active Infowar (turns) 989 | 25 398 340 226 Sensors 989 | 25 398 340 226 Robot Analysis Total . | . . . . Derelict Logs Recovered 1 | . . . 1 Drone Launches . | . . . . Drone Recoveries . | . . . . Exploration | -11 -10 -10 -10 ------------- Run | Yrd Mat Min Sub Turns Passed 1389 | 57 413 340 579 Spaces Moved 1110 | 51 384 263 412 Core 87 | 35 7 . 45 Treads 83 | 16 67 . . Legs . | . . . . Wheels . | . . . . Hover 940 | . 310 263 367 Flight . | . . . . Fastest Speed 50 | 50 56 56 56 Average Speed 87 | 88 81 56 113 Slowest Speed 180 | 160 160 56 180 Overloaded Moves . | . . . . Propulsion Burnouts . | . . . . Robots Hopped . | . . . . Potential Cave-ins . | . . . . Cave-ins Triggered . | . . . . Exploration Rate (%) 37 | 3 46 62 40 Regions Visited 3 Branch Regions 2 Pre-discovered Areas . | . . . . Known Exits Taken 3 | 1 1 1 . Unknown Exits Taken . | . . . . Scrap Searched . | . . . . Spaces Dug . | . . . . Terrain Destroyed . | . . . . Melee . | . . . . Projectile . | . . . . AOE . | . . . . Terrain Rammed . | . . . . Walls Destroyed . | . . . . Machines Disabled . | . . . . Actions | -11 -10 -10 -10 --------- Run | Yrd Mat Min Sub Total 1461 | 62 467 444 488 Wait 243 | . 31 165 47 Move 1107 | 50 383 262 412 Hop . | . . . . Pick Up 21 | 5 15 1 . Fast Attach 4 | 2 . . 2 Attach 22 | 5 11 2 4 Detach 9 | . 6 1 2 Swap 3 | . 1 1 1 Drop 3 | . 2 1 . Fire 42 | . 12 11 19 Melee . | . . . . Ram 6 | . 6 . . Kick . | . . . . Crush . | . . . . Escape Stasis . | . . . . Rewire 1 | . . . 1 Trap . | . . . . Miscellaneous . | . . . . Route ------- -11/Scrapyard -10/Materials (discovered 2 exits: *Mat / *Min) -10/Mines (discovered 3 exits: *Mat x2 / *Sub) -10/Subcaves (discovered 2 exits: *Mat x2) History --------- Turn | Location | Event 7 | -11/Scrapyard | Identified exit to Materials 7 | -11/Scrapyard | Discovered exit to Materials (range 16) 58 | -11/Scrapyard | Entered Materials 58 | -10/Materials | Evolved 1 slot: Utility x1 149 | -10/Materials | Identified exit to Mines 149 | -10/Materials | Discovered exit to Mines (range 10) 198 | -10/Materials | Identified exit to Materials 198 | -10/Materials | Discovered exit to Materials (range 16) 314 | -10/Materials | Build established: Hacker-Mutant 471 | -10/Materials | Entered Mines 687 | -10/Mines | Discovered exit to Materials (range 11) 694 | -10/Mines | Assisted by bots powering up and referring to "LRC-V3" 712 | -10/Mines | Discovered exit to Materials (range 8) 777 | -10/Mines | Identified exit to Subcaves 777 | -10/Mines | Discovered exit to Subcaves (range 8) 811 | -10/Mines | Entered Subcaves 811 | -10/Subcaves | Accompanied by 3 allies 817 | -10/Subcaves | Learned Materials emergency access door positions 963 | -10/Subcaves | Lost 3 allies 977 | -10/Subcaves | A swath of the cavern ceiling suddenly collapsed 984 | -10/Subcaves | Identified exit to Materials 984 | -10/Subcaves | Discovered exit to Materials (range 13) 1032 | -10/Subcaves | Core integrity fell below 50% 1049 | -10/Subcaves | Shifting Twisted Machinery released Multitool 1061 | -10/Subcaves | Shifting Twisted Machinery released Sub. Monowheel 1313 | -10/Subcaves | Core integrity fell below 20% 1355 | -10/Subcaves | Lost 5 parts (1p1n3w) 1356 | -10/Subcaves | Discovered exit to Materials (range 9) 1390 | -10/Subcaves | Destroyed by G-34 Mercenary with Small Laser Last Messages --------------- 01310_ Multitool destroyed. 01310_ G2-C9L(R) suffers critical hit (Burn). 01319_ Subatomizers dissect the Disposable Heat Sink. 01319_ G2-C9L(R) destroyed. 01321_ 9F-XZB(R) affixes Scrap Shield Fragment to Scrap Shield. 01324_ Med. Laser destroyed. 01327_ Sub. Monowheel melted. 01327_ Sub. Optics melted. 01327_ 9F-XZB(R) destroyed. 01331_ Acquired 20 matter. 01343_ Subatomizers dissect the Disposable Heat Sink. 01356_ EXIT=FOUND: MATERIALS 01370_ Subatomizers dissect the Lgt. Assault Rifle. 01385_ Subatomizers dissect the Lgt. Assault Rifle, destroying it. Map ----- +----------------------------------------------------+ | ???????????????????# #?????###### ! | | ???????????????????# ####### !&%* | | ????????????????????# # ## *%!& | | ???????????????###???# % !%& | | ??????????????## #?## ## # | | ??????????????# ## # ## #### ## | | ??????????????# #### #??# # | | ??????????????## ###?# ? # | | ???????????????## #???# # | | ???????????????###### ####???# #### # # | | ???????????????# #### #??????# #??####### | | ??????????????## ##???? #?????????? | | ??????????????# ##### ##??????????? | | ??????????????# ## * ##?????????? | | ??????????????# ??## < =% #?????????? | | ??????????????# ### ##?????????? | | ???????????????# ##% #??????????? | | ???????????????## ###?* #??????????? | | ????????????????### #### ## #??????? | | ??????????????????## ### #??????? | | ???????????????????# # ## #??????? | | ???????????????###?#### # #??????? | | ??????????????## #??# #???????????? | | ??????????????# #?## ##???????????? | | ??????????????# ### ### ##????????????? | | ??????????????# @ ###???##?????????????? | | ??????????????## ###????????????????????? | | ???????????????#### g#??????????????????????? | | ??????????????????# ??????????????????????? | | ??????????????????# ??????????????????????? | | ?????????????????? Y??????????????????????? | | ????????????????? ??????????????????????? | | ????????????????? ?????????????????????? | | ???????????????? ##?????????????????????? | | ???????????????# ???????????????????????? | | ??????????????? ???????????????????????? | | ??????????????# ???????????????????????? | | ??????????????# ???????????????????????? | | ??????????????## ???????????????????????? | | ????????????????## ???????????????????????? | | ??????????????????# ???????????????????????? | | ????????????????????????????????????????????? | | ????????????????????????????????????????????? | | ????????????????????????????????????????????? | | ????????????????????????????????????????????? | | ????????????????????????????????????????????? | | ????????????????????????????????????????????? | | ????????????????????????????????????????????? | | ????????????????????????????????????????????? | | ????????????????????????????????????????????? | +----------------------------------------------------+ Best States ------------- Heat Dissipation 25 Energy Generation 14 Energy Capacity 250 Matter Stores 300 Matter Capacity 300 Sight Range 16 Robot Scan Range 14 Terrain Scan Density 10 Resistance: KI 35 Resistance: TH 35 Resistance: EX 35 Resistance: EM 35 Resistance: I 35 Resistance: S 35 Resistance: P 35 Evasion (%) 53 Recoil Reduction 2 Offensive Hacking 20 Item Schematics ----------------- None Robot Schematics ------------------ None Fabricated ------------ Nothing Repaired ---------- Nothing Studied --------- None Alien Tech Used ----------------- None Achievements -------------- None Challenges ------------ None Game ------ Seed ProjectionUltimateShovel Manual? 0 Play Time 00:11:12 Cumulative 147.7 hours Start 2025.11.27 @ 14:21:05 End 2025.11.27 @ 14:29:20 Sessions 1 Manual Loads 0 Difficulty Explorer Special Mode None Game No. 181 Rogue 0 Adventurer 0 Explorer 181 Win Type - Total 0 Types 0/0/0/0/0/0/0/0/0/0 Lore% 69 Gallery% 66 Achievement% 52 Wizard Run 0 Options --------- Layout 1 ASCII 0 Keyboard 0 Movement Mouse Keybinds 0 Fullscreen 1 Font 24/Smallcaps Map View 50x35 Zoom Use 0% Tactical HUD 1 Map Filters NONE Filters NONE Steam 1 RUN: 732fc804-6ac7-497f-a366-7fd581a10556